fUST/lending_fUST_20240906
["ID","MTS","AMOUNT","RATE_DAILY","PERIOD"]
[337382641,1725635470076,-1054.39,0.0002,2]
[337382643,1725635470087,-1709.92,0.0002,2]
[337382645,1725635470099,-500.0,0.0002,2]
[337382647,1725635470109,-500.0,0.0002,2]
[337382649,1725635470119,-608.17,0.0002,2]
[337382652,1725635470129,-500.0,0.0002,2]
[337382654,1725635470138,-1974.51,0.0002,2]
[337382656,1725635470148,-151.0,0.0002,2]
[337382658,1725635470157,-500.0,0.0002,2]
[337382660,1725635470167,-500.0,0.0002,2]
[337382662,1725635470176,-500.0,0.0002,2]
[337382664,1725635470185,-500.0,0.0002,2]
[337382666,1725635470194,-500.0,0.0002,2]
[337382668,1725635470203,-500.0,0.0002,2]
[337382670,1725635470213,-151.0,0.0002,2]
[337382672,1725635470227,-1144.39,0.0002,2]
[337382674,1725635470236,-500.0,0.0002,2]
[337382676,1725635470246,-151.0,0.0002,2]
[337382678,1725635470257,-500.0,0.0002,2]
[337382680,1725635470267,-1367.3,0.0002,2]
[337382682,1725635470276,-500.0,0.0002,2]
[337382684,1725635470286,-872.73,0.0002,2]
[337382686,1725635470295,-500.0,0.0002,2]
[337382688,1725635470305,-500.0,0.0002,2]
[337382690,1725635470315,-151.0,0.0002,2]
[337382692,1725635470324,-1320.77,0.0002,2]
[337382694,1725635470334,-1389.96,0.0002,2]
[337382696,1725635470345,-151.0,0.0002,2]
[337382698,1725635470355,-500.0,0.0002,2]
[337382700,1725635470364,-500.0,0.0002,2]
[337382702,1725635470374,-751.95,0.0002,2]
[337382704,1725635470384,-151.0,0.0002,2]
[337382706,1725635470393,-500.0,0.0002,2]
[337382708,1725635470402,-500.0,0.0002,2]
[337382710,1725635470412,-571.12,0.0002,2]
[337382712,1725635470421,-500.0,0.0002,2]
[337382714,1725635470432,-1191.1,0.0002,2]
[337382717,1725635470443,-500.0,0.0002,2]
[337382719,1725635470453,-500.0,0.0002,2]
[337382721,1725635470463,-1742.36,0.0002,2]
[337382723,1725635470477,-6868.04,0.0002,2]
[337382725,1725635470486,-500.0,0.0002,2]
[337382727,1725635470495,-500.0,0.0002,2]
[337382729,1725635470505,-1225.08,0.0002,2]
[337382731,1725635470514,-1584.91,0.0002,2]
[337382733,1725635470526,-515.26,0.0002,2]
[337382735,1725635470536,-1263.83,0.0002,2]
[337382737,1725635470547,-1124.13,0.0002,2]
[337382739,1725635470557,-500.0,0.0002,2]
[337382741,1725635470568,-151.0,0.0002,2]
[337382743,1725635470577,-1248.325363,0.0002,2]
[337382745,1725635470587,-669.78,0.0002,2]
[337382747,1725635470597,-500.0,0.0002,2]
[337382749,1725635470607,-2764.07,0.0002,2]
[337382752,1725635470616,-509.56827234,0.0002,2]
[337382754,1725635470626,-1248.325363,0.0002,2]
[337382756,1725635470636,-500.0,0.0002,2]
[337382758,1725635470646,-1210.88,0.0002,2]
[337382760,1725635470656,-500.0,0.0002,2]
[337382762,1725635470668,-1286.07,0.0002,2]
[337382764,1725635470678,-1140.026721,0.0002,2]
[337382766,1725635470688,-500.0,0.0002,2]
[337382768,1725635470697,-5445.49,0.0002,2]
[337382770,1725635470707,-500.0,0.0002,2]
[337382772,1725635470720,-1140.026721,0.0002,2]
[337382774,1725635470730,-646.12,0.0002,2]
[337382776,1725635470742,-500.0,0.0002,2]
[337382778,1725635470754,-1576.49,0.0002,2]
[337382781,1725635470766,-56528.17364739,0.0002,2]
[337382825,1725635471171,-999.9933705,0.0002,2]
[337382827,1725635471187,-5354.33298211,0.0002,2]
[337382829,1725635471196,-1881.02,0.0002,2]
[337382831,1725635471206,-500.0,0.0002,2]
[337382834,1725635471216,-829.68,0.0002,2]
[337382836,1725635471230,-500.0,0.0002,2]
[337382838,1725635471240,-705.41,0.0002,2]
[337382840,1725635471250,-500.0,0.0002,2]
[337382842,1725635471259,-500.0,0.0002,2]
[337382844,1725635471268,-2941.86,0.0002,2]
[337382846,1725635471278,-518.81,0.0002,2]
[337382848,1725635471288,-602.59,0.0002,2]
[337382850,1725635471298,-160.733394,0.0002,2]
[337382852,1725635471309,-1223.4,0.0002,2]
[337382854,1725635471319,-151.0,0.0002,2]
[337382856,1725635471331,-500.0,0.0002,2]
[337382858,1725635471341,-1815.08,0.0002,2]
[337382860,1725635471351,-160.733394,0.0002,2]
[337382862,1725635471362,-500.0,0.0002,2]
[337382864,1725635471372,-1109.4,0.0002,2]
[337382867,1725635471383,-500.0,0.0002,2]
[337382869,1725635471393,-500.0,0.0002,2]
[337382871,1725635471402,-850.23,0.0002,2]
[337382873,1725635471412,-1302.53,0.0002,2]
[337382875,1725635471421,-1759.32,0.0002,2]
[337382877,1725635471431,-151.0,0.0002,2]
[337382879,1725635471441,-891.12,0.0002,2]
[337382881,1725635471451,-1750.7,0.0002,2]
[337382883,1725635471461,-500.0,0.0002,2]
[337382885,1725635471473,-151.0,0.0002,2]
[337382887,1725635471483,-500.0,0.0002,2]
[337382889,1725635471493,-1759.01,0.0002,2]
[337382891,1725635471502,-766.52,0.0002,2]
[337382893,1725635471512,-825.05,0.0002,2]
[337382895,1725635471522,-1824.85,0.0002,2]
[337382897,1725635471532,-500.0,0.0002,2]
[337382899,1725635471542,-500.0,0.0002,2]
[337382901,1725635471552,-703.18,0.0002,2]
[337382903,1725635471562,-902.922438,0.0002,2]
[337382905,1725635471571,-658.08,0.0002,2]
[337382907,1725635471582,-507.94,0.0002,2]
[337382909,1725635471592,-902.922438,0.0002,2]
[337382911,1725635471601,-686.01,0.0002,2]
[337382913,1725635471611,-500.0,0.0002,2]
[337382916,1725635471621,-500.0,0.0002,2]
[337382918,1725635471632,-2585.86172,0.0002,2]
[337382920,1725635471642,-659.89,0.0002,2]
[337382922,1725635471652,-1870.38,0.0002,2]
[337382924,1725635471664,-500.0,0.0002,2]
[337382926,1725635471674,-2585.86172,0.0002,2]
[337382928,1725635471684,-1087.66,0.0002,2]
[337382930,1725635471693,-2189.64,0.0002,2]
[337382932,1725635471703,-500.0,0.0002,2]
[337382934,1725635471714,-151.0,0.0002,2]
[337382936,1725635471730,-500.0,0.0002,2]
[337382938,1725635471742,-500.0,0.0002,2]
[337382940,1725635471752,-930.47,0.0002,2]
[337382942,1725635471763,-500.0,0.0002,2]
[337382944,1725635471773,-1407.25,0.0002,2]
[337382946,1725635471783,-1301.2,0.0002,2]
[337382948,1725635471793,-500.0,0.0002,2]
[337382950,1725635471803,-151.0,0.0002,2]
[337382952,1725635471812,-544.23,0.0002,2]
[337382954,1725635471822,-500.0,0.0002,2]
[337382956,1725635471832,-500.0,0.0002,2]
[337382958,1725635471843,-1056.08,0.0002,2]
[337382960,1725635471853,-151.0,0.0002,2]
[337382962,1725635471863,-467.90857467,0.0002,2]
[337382964,1725635471872,-500.0,0.0002,2]
[337382966,1725635471882,-500.0,0.0002,2]
[337382968,1725635471892,-208.211729,0.0002,2]
[337382970,1725635471902,-500.0,0.0002,2]
[337382972,1725635471911,-3042.96,0.0002,2]
[337382974,1725635471920,-208.211729,0.0002,2]
[337382976,1725635471930,-151.0,0.0002,2]
[337382979,1725635471941,-2093.22,0.0002,2]
[337382981,1725635471950,-1342.45,0.0002,2]
[337382983,1725635471962,-1422.63,0.0002,2]
[337382985,1725635471977,-500.0,0.0002,2]
[337382987,1725635471988,-500.0,0.0002,2]
[337382989,1725635472000,-500.0,0.0002,2]
[337382991,1725635472012,-151.0,0.0002,2]
[337382994,1725635472023,-500.0,0.0002,2]
[337382996,1725635472034,-2852.83,0.0002,2]
[337382998,1725635472044,-500.0,0.0002,2]
[337383000,1725635472053,-151.0,0.0002,2]
[337383002,1725635472063,-1050.5,0.0002,2]
[337383004,1725635472073,-151.0,0.0002,2]
[337383006,1725635472084,-500.0,0.0002,2]
[337383008,1725635472095,-603.02,0.0002,2]
[337383009,1725635472105,-500.0,0.0002,2]
[337383010,1725635472117,-825.83,0.0002,2]
[337383011,1725635472129,-151.0,0.0002,2]
[337383012,1725635472139,-735.62,0.0002,2]
[337383013,1725635472149,-500.0,0.0002,2]
[337383014,1725635472160,-151.0,0.0002,2]
[337383015,1725635472170,-500.0,0.0002,2]
[337383016,1725635472181,-509.14129153,0.0002,2]
[337383017,1725635472191,-500.0,0.0002,2]
[337383018,1725635472201,-25870.76,0.0002,2]
[337383019,1725635472211,-2036.65,0.0002,2]
[337383020,1725635472225,-1054.12,0.0002,2]
[337383021,1725635472236,-585.32,0.0002,2]
[337383022,1725635472247,-1152.21,0.0002,2]
[337383023,1725635472258,-500.0,0.0002,2]
[337383024,1725635472268,-2167.46,0.0002,2]
[337383026,1725635472278,-500.0,0.0002,2]
[337383028,1725635472288,-500.0,0.0002,2]
[337383030,1725635472299,-500.0,0.0002,2]
[337383032,1725635472310,-797.57,0.0002,2]
[337383034,1725635472319,-2005.74,0.0002,2]
[337383036,1725635472331,-500.0,0.0002,2]
[337383038,1725635472341,-500.0,0.0002,2]
[337383040,1725635472351,-845.93,0.0002,2]
[337383042,1725635472362,-500.0,0.0002,2]
[337383044,1725635472372,-712.12,0.0002,2]
[337383046,1725635472382,-500.0,0.0002,2]
[337383049,1725635472392,-500.0,0.0002,2]
[337383051,1725635472402,-500.0,0.0002,2]
[337383053,1725635472412,-2282.79,0.0002,2]
[337383055,1725635472423,-1796.13,0.0002,2]
[337383057,1725635472432,-500.0,0.0002,2]
[337383059,1725635472442,-500.0,0.0002,2]
[337383061,1725635472452,-1903.93,0.0002,2]
[337383063,1725635472462,-500.0,0.0002,2]
[337383065,1725635472474,-2250.0,0.0002,2]
[337383067,1725635472484,-500.0,0.0002,2]
[337383069,1725635472494,-1013.16,0.0002,2]
[337383071,1725635472504,-599.93,0.0002,2]
[337383073,1725635472514,-500.0,0.0002,2]
[337383075,1725635472523,-530.72,0.0002,2]
[337383077,1725635472533,-500.0,0.0002,2]
[337383079,1725635472543,-2136.09,0.0002,2]
[337383081,1725635472553,-500.0,0.0002,2]
[337383083,1725635472562,-519.57,0.0002,2]
[337383085,1725635472572,-61494.33,0.0002,2]
[337383087,1725635472583,-206.369492,0.0002,2]
[337383089,1725635472592,-1116.46,0.0002,2]
[337383091,1725635472602,-206.369492,0.0002,2]
[337383093,1725635472612,-500.0,0.0002,2]
[337383095,1725635472622,-500.0,0.0002,2]
[337383097,1725635472632,-47567.92,0.0002,2]
[337383114,1725635472797,-500.0,0.0002,2]
[337383116,1725635472808,-991.68,0.0002,2]
[337383119,1725635472819,-1000.0,0.00020021,2]
[337383121,1725635472831,-1000.0,0.00020021,2]
[337383123,1725635472842,-189.0,0.00020146,2]
[337383125,1725635472852,-500.0,0.00020273,2]
[337383127,1725635472861,-500.0,0.00020273,2]
[337383129,1725635472870,-500.0,0.00020273,2]
[337383131,1725635472880,-500.0,0.00020273,2]
[337383133,1725635472890,-500.0,0.00020273,2]
[337383135,1725635472899,-500.0,0.00020273,2]
[337383137,1725635472908,-500.0,0.00020273,2]
[337383139,1725635472917,-391.18225885,0.00020273,2]
[337383144,1725635472957,-108.81774115,0.00020273,2]
[337383146,1725635472967,-500.0,0.00020273,2]
[337383148,1725635472981,-0.55932271,0.00020273,2]
[337383174,1725635473228,-499.44067729,0.00020273,2]
[337383176,1725635473238,-500.0,0.00020273,2]
[337383178,1725635473247,-500.0,0.00020273,2]
[337383180,1725635473257,-500.0,0.00020273,2]
[337383182,1725635473266,-500.0,0.00020273,2]
[337383184,1725635473276,-925.3,0.00020273,2]
[337383185,1725635473285,-500.0,0.00020273,2]
[337383187,1725635473295,-500.0,0.00020273,2]
[337383189,1725635473304,-500.0,0.00020273,2]
[337383191,1725635473314,-151.0,0.00020273,2]
[337383193,1725635473323,-923.18,0.00020273,2]
[337383195,1725635473333,-500.0,0.00020273,2]
[337383198,1725635473345,-151.0,0.00020273,2]
[337383200,1725635473355,-151.0,0.00020273,2]
[337383201,1725635473364,-500.0,0.00020273,2]
[337383204,1725635473374,-500.0,0.00020273,2]
[337383205,1725635473384,-500.0,0.00020273,2]
[337383207,1725635473394,-151.0,0.00020273,2]
[337383209,1725635473404,-500.0,0.00020273,2]
[337383211,1725635473414,-151.0,0.00020273,2]
[337383213,1725635473423,-151.0,0.00020273,2]
[337383215,1725635473434,-500.0,0.00020273,2]
[337383217,1725635473444,-500.0,0.00020273,2]
[337383219,1725635473455,-500.0,0.00020273,2]
[337383221,1725635473465,-500.0,0.00020273,2]
[337383223,1725635473481,-556.09,0.00020273,2]
[337383225,1725635473490,-500.0,0.00020273,2]
[337383226,1725635473499,-500.0,0.00020273,2]
[337383228,1725635473509,-500.0,0.00020273,2]
[337383230,1725635473518,-500.0,0.00020273,2]
[337383232,1725635473528,-500.0,0.00020273,2]
[337383234,1725635473537,-651.2,0.00020273,2]
[337383236,1725635473547,-500.0,0.00020273,2]
[337383238,1725635473556,-1202.22,0.00020273,2]
[337383240,1725635473566,-1418.48,0.00020273,2]
[337383242,1725635473576,-500.0,0.00020273,2]
[337383244,1725635473586,-519.47,0.00020273,2]
[337383246,1725635473596,-500.0,0.00020273,2]
[337383248,1725635473606,-500.0,0.00020273,2]
[337383250,1725635473617,-511.13078132,0.00020273,2]
[337383252,1725635473626,-151.0,0.00020273,2]
[337383254,1725635473636,-500.0,0.00020273,2]
[337383256,1725635473645,-500.0,0.00020273,2]
[337383257,1725635473656,-500.0,0.00020273,2]
[337383259,1725635473669,-500.0,0.00020273,2]
[337383261,1725635473680,-1118.820598,0.00020273,2]
[337383263,1725635473690,-494.92135,0.00020273,2]
[337383265,1725635473701,-1118.820598,0.00020273,2]
[337383267,1725635473711,-500.0,0.00020273,2]
[337383269,1725635473727,-500.0,0.00020273,2]
[337383271,1725635473739,-494.92135,0.00020273,2]
[337383273,1725635473750,-525.77,0.00020273,2]
[337383275,1725635473760,-1034.0,0.00020273,2]
[337383277,1725635473771,-500.0,0.00020273,2]
[337383279,1725635473781,-151.0,0.00020273,2]
[337383281,1725635473791,-545.55,0.00020273,2]
[337383283,1725635473801,-500.0,0.00020273,2]
[337383285,1725635473811,-151.0,0.00020273,2]
[337383287,1725635473820,-500.0,0.00020273,2]
[337383289,1725635473830,-500.0,0.00020273,2]
[337383291,1725635473839,-500.0,0.00020273,2]
[337383293,1725635473849,-500.0,0.00020273,2]
[337383295,1725635473859,-500.0,0.00020273,2]
[337383297,1725635473870,-500.0,0.00020273,2]
[337383299,1725635473880,-500.0,0.00020273,2]
[337383301,1725635473889,-1295.57,0.00020273,2]
[337383303,1725635473898,-500.0,0.00020273,2]
[337383305,1725635473907,-500.0,0.00020273,2]
[337383307,1725635473916,-1571.91,0.00020273,2]
[337383309,1725635473926,-500.0,0.00020273,2]
[337383310,1725635473935,-151.0,0.00020273,2]
[337383313,1725635473944,-1237.9,0.00020273,2]
[337383315,1725635473954,-500.0,0.00020273,2]
[337383316,1725635473964,-151.0,0.00020273,2]
[337383319,1725635473981,-589.91,0.00020273,2]
[337383321,1725635473990,-500.0,0.00020273,2]
[337383323,1725635473999,-500.0,0.00020273,2]
[337383324,1725635474008,-1264.18,0.00020273,2]
[337383326,1725635474017,-500.0,0.00020273,2]
[337383328,1725635474027,-643.02,0.00020273,2]
[337383330,1725635474036,-613.14944031,0.00020273,2]
[337383332,1725635474046,-500.0,0.00020273,2]
[337383334,1725635474056,-808.94,0.00020273,2]
[337383336,1725635474065,-500.0,0.00020273,2]
[337383338,1725635474074,-1186.79,0.00020273,2]
[337383340,1725635474084,-500.0,0.00020273,2]
[337383342,1725635474093,-500.0,0.00020273,2]
[337383344,1725635474102,-500.0,0.00020273,2]
[337383346,1725635474112,-500.0,0.00020273,2]
[337383348,1725635474122,-151.0,0.00020273,2]
[337383350,1725635474132,-601.88,0.00020273,2]
[337383352,1725635474141,-512.73234518,0.00020273,2]
[337383354,1725635474151,-500.0,0.00020273,2]
[337383356,1725635474160,-548.95,0.00020273,2]
[337383358,1725635474169,-540.63110151,0.00020273,2]
[337383360,1725635474179,-500.0,0.00020273,2]
[337383362,1725635474188,-500.0,0.00020273,2]
[337383364,1725635474197,-587.02,0.00020273,2]
[337383366,1725635474207,-500.0,0.00020273,2]
[337383368,1725635474216,-570.98,0.00020273,2]
[337383370,1725635474229,-500.0,0.00020273,2]
[337383372,1725635474239,-500.0,0.00020273,2]
[337383374,1725635474248,-184.196246,0.00020273,2]
[337383376,1725635474257,-1624.21,0.00020273,2]
[337383378,1725635474265,-500.0,0.00020273,2]
[337383380,1725635474276,-500.0,0.00020273,2]
[337383382,1725635474285,-184.196246,0.00020273,2]
[337383384,1725635474294,-959.09,0.00020273,2]
[337383386,1725635474304,-540.60300977,0.00020273,2]
[337383388,1725635474313,-500.0,0.00020273,2]
[337383390,1725635474323,-529.54,0.00020273,2]
[337383392,1725635474333,-500.0,0.00020273,2]
[337383394,1725635474343,-500.0,0.00020273,2]
[337383396,1725635474352,-500.0,0.00020273,2]
[337383398,1725635474362,-1193.407379,0.00020273,2]
[337383400,1725635474372,-619.87,0.00020273,2]
[337383402,1725635474382,-1193.407379,0.00020273,2]
[337383404,1725635474392,-500.0,0.00020273,2]
[337383406,1725635474401,-500.0,0.00020273,2]
[337383408,1725635474411,-500.0,0.00020273,2]
[337383410,1725635474425,-1123.51,0.00020273,2]
[337383413,1725635474441,-151.0,0.00020273,2]
[337383416,1725635474457,-500.0,0.00020273,2]
[337383418,1725635474470,-500.0,0.00020273,2]
[337383420,1725635474487,-500.0,0.00020273,2]
[337383423,1725635474500,-500.0,0.00020273,2]
[337383425,1725635474514,-500.0,0.00020273,2]
[337383428,1725635474528,-500.0,0.00020273,2]
[337383430,1725635474542,-500.0,0.00020273,2]
[337383433,1725635474557,-1306.31,0.00020273,2]
[337383435,1725635474572,-414.80054113,0.00020273,2]
[337383438,1725635474585,-151.0,0.00020273,2]
[337383440,1725635474598,-500.0,0.00020273,2]
[337383443,1725635474611,-151.0,0.00020273,2]
[337383445,1725635474626,-500.0,0.00020273,2]
[337383448,1725635474640,-500.0,0.00020273,2]
[337383450,1725635474650,-860.27,0.00020273,2]
[337383452,1725635474664,-500.0,0.00020273,2]
[337383454,1725635474678,-151.0,0.00020273,2]
[337383457,1725635474691,-559.04,0.00020273,2]
[337383459,1725635474707,-1022.33,0.00020273,2]
[337383462,1725635474720,-1335.92,0.00020273,2]
[337383464,1725635474745,-500.0,0.00020273,2]
[337383467,1725635474760,-500.0,0.00020273,2]
[337383469,1725635474772,-500.0,0.00020273,2]
[337383471,1725635474784,-500.0,0.00020273,2]
[337383474,1725635474795,-1961.67,0.00020273,2]
[337383476,1725635474808,-899.05,0.00020273,2]
[337383478,1725635474822,-500.0,0.00020273,2]
[337383480,1725635474836,-1802.118153,0.00020273,2]
[337383481,1725635474846,-500.0,0.00020273,2]
[337383482,1725635474859,-500.0,0.00020273,2]
[337383483,1725635474871,-619.65,0.00020273,2]
[337383485,1725635474888,-1802.118153,0.00020273,2]
[337383487,1725635474898,-500.0,0.00020273,2]
[337383489,1725635474910,-524.01,0.00020273,2]
[337383492,1725635474923,-500.0,0.00020273,2]
[337383494,1725635474936,-500.0,0.00020273,2]
[337383497,1725635474951,-500.0,0.00020273,2]
[337383499,1725635474963,-151.0,0.00020273,2]
[337383501,1725635474981,-500.0,0.00020273,2]
[337383504,1725635474994,-500.0,0.00020273,2]
[337383506,1725635475008,-247.230336,0.00020273,2]
[337383509,1725635475021,-500.0,0.00020273,2]
[337383511,1725635475035,-500.0,0.00020273,2]
[337383514,1725635475049,-1054.39,0.00020273,2]
[337383516,1725635475062,-500.0,0.00020273,2]
[337383519,1725635475075,-1709.92,0.00020273,2]
[337383521,1725635475088,-500.0,0.00020273,2]
[337383523,1725635475100,-608.17,0.00020273,2]
[337383526,1725635475113,-340.32364649,0.00020273,2]
[337383528,1725635475124,-1974.51,0.00020273,2]
[337383530,1725635475137,-151.0,0.00020273,2]
[337383533,1725635475149,-500.0,0.00020273,2]
[337383535,1725635475161,-500.0,0.00020273,2]
[337383537,1725635475173,-500.0,0.00020273,2]
[337383539,1725635475184,-500.0,0.00020273,2]
[337383541,1725635475197,-500.0,0.00020273,2]
[337383544,1725635475209,-500.0,0.00020273,2]
[337383546,1725635475220,-151.0,0.00020273,2]
[337383548,1725635475236,-1144.39,0.00020273,2]
[337383551,1725635475248,-500.0,0.00020273,2]
[337383553,1725635475260,-195.569486,0.00020273,2]
[337383555,1725635475272,-500.0,0.00020273,2]
[337383557,1725635475284,-1367.3,0.00020273,2]
[337383559,1725635475293,-567.46341613,0.00020273,2]
[337383561,1725635475303,-872.73,0.00020273,2]
[337383563,1725635475313,-500.0,0.00020273,2]
[337383565,1725635475323,-500.0,0.00020273,2]
[337383568,1725635475336,-151.0,0.00020273,2]
[337383570,1725635475345,-1320.77,0.00020273,2]
[337383572,1725635475354,-1389.96,0.00020273,2]
[337383574,1725635475365,-151.0,0.00020273,2]
[337383576,1725635475375,-500.0,0.00020273,2]
[337383578,1725635475384,-500.0,0.00020273,2]
[337383580,1725635475394,-751.95,0.00020273,2]
[337383582,1725635475404,-151.0,0.00020273,2]
[337383584,1725635475413,-500.0,0.00020273,2]
[337383586,1725635475423,-500.0,0.00020273,2]
[337383588,1725635475432,-571.12,0.00020273,2]
[337383590,1725635475442,-500.0,0.00020273,2]
[337383592,1725635475452,-1191.1,0.00020273,2]
[337383594,1725635475461,-500.0,0.00020273,2]
[337383596,1725635475471,-500.0,0.00020273,2]
[337383598,1725635475483,-1742.36,0.00020273,2]
[337383600,1725635475493,-6868.04,0.00020273,2]
[337383602,1725635475503,-513.44151539,0.00020273,2]
[337383604,1725635475512,-500.0,0.00020273,2]
[337383606,1725635475522,-1225.08,0.00020273,2]
[337383608,1725635475531,-515.26,0.00020273,2]
[337383610,1725635475541,-1263.83,0.00020273,2]
[337383612,1725635475551,-1124.13,0.00020273,2]
[337383614,1725635475562,-456.68022728,0.00020273,2]
[337383617,1725635475574,-151.0,0.00020273,2]
[337383619,1725635475586,-1248.325363,0.00020273,2]
[337383621,1725635475596,-669.78,0.00020273,2]
[337383623,1725635475606,-500.0,0.00020273,2]
[337383625,1725635475616,-2764.07,0.00020273,2]
[337383627,1725635475626,-1248.325363,0.00020273,2]
[337383629,1725635475636,-500.0,0.00020273,2]
[337383631,1725635475646,-1210.88,0.00020273,2]
[337383633,1725635475656,-500.0,0.00020273,2]
[337383635,1725635475667,-1286.07,0.00020273,2]
[337383637,1725635475677,-1140.026721,0.00020273,2]
[337383639,1725635475687,-500.0,0.00020273,2]
[337383641,1725635475696,-5445.49,0.00020273,2]
[337383643,1725635475707,-500.0,0.00020273,2]
[337383645,1725635475717,-1140.026721,0.00020273,2]
[337383647,1725635475730,-646.12,0.00020273,2]
[337383649,1725635475741,-500.0,0.00020273,2]
[337383651,1725635475750,-1576.49,0.00020273,2]
[337383653,1725635475759,-62882.5,0.00020273,2]
[337383655,1725635475769,-1881.02,0.00020273,2]
[337383657,1725635475778,-500.0,0.00020273,2]
[337383659,1725635475788,-829.68,0.00020273,2]
[337383661,1725635475798,-500.0,0.00020273,2]
[337383663,1725635475807,-705.41,0.00020273,2]
[337383665,1725635475817,-500.0,0.00020273,2]
[337383667,1725635475826,-500.0,0.00020273,2]
[337383669,1725635475836,-2941.86,0.00020273,2]
[337383671,1725635475847,-518.81,0.00020273,2]
[337383673,1725635475856,-602.59,0.00020273,2]
[337383675,1725635475866,-160.733394,0.00020273,2]
[337383677,1725635475876,-1223.4,0.00020273,2]
[337383680,1725635475886,-151.0,0.00020273,2]
[337383682,1725635475896,-500.0,0.00020273,2]
[337383684,1725635475906,-1815.08,0.00020273,2]
[337383686,1725635475915,-160.733394,0.00020273,2]
[337383688,1725635475925,-500.0,0.00020273,2]
[337383690,1725635475934,-1109.4,0.00020273,2]
[337383692,1725635475943,-500.0,0.00020273,2]
[337383694,1725635475952,-500.0,0.00020273,2]
[337383696,1725635475962,-850.23,0.00020273,2]
[337383698,1725635475971,-1302.53,0.00020273,2]
[337383700,1725635475984,-151.0,0.00020273,2]
[337383702,1725635475993,-891.12,0.00020273,2]
[337383704,1725635476003,-1759.32,0.00020273,2]
[337383706,1725635476013,-1750.7,0.00020273,2]
[337383708,1725635476022,-500.0,0.00020273,2]
[337383710,1725635476032,-500.0,0.00020273,2]
[337383712,1725635476042,-151.0,0.00020273,2]
[337383714,1725635476052,-1759.01,0.00020273,2]
[337383717,1725635476062,-766.52,0.00020273,2]
[337383719,1725635476072,-825.05,0.00020273,2]
[337383721,1725635476082,-1824.85,0.00020273,2]
[337383723,1725635476091,-500.0,0.00020273,2]
[337383725,1725635476101,-500.0,0.00020273,2]
[337383727,1725635476111,-703.18,0.00020273,2]
[337383729,1725635476120,-902.922438,0.00020273,2]
[337383731,1725635476130,-658.08,0.00020273,2]
[337383733,1725635476140,-507.94,0.00020273,2]
[337383735,1725635476151,-902.922438,0.00020273,2]
[337383737,1725635476162,-686.01,0.00020273,2]